fUSD/lending_fUSD_20250617
["ID","MTS","AMOUNT","RATE_DAILY","PERIOD"]
[366208165,1750121450480,-241.58,0.0001646,2]
[366208166,1750121450489,-490.0,0.0001646,2]
[366208167,1750121450499,-500.0,0.0001646,2]
[366208168,1750121450509,-490.0,0.0001646,2]
[366208169,1750121450519,-151.0,0.0001646,2]
[366208170,1750121450528,-490.0,0.0001646,2]
[366208171,1750121450537,-151.0,0.0001646,2]
[366208172,1750121450546,-490.0,0.0001646,2]
[366208173,1750121450556,-600.4,0.0001646,2]
[366208174,1750121450566,-490.0,0.0001646,2]
[366208175,1750121450576,-490.0,0.0001646,2]
[366208176,1750121450585,-490.0,0.0001646,2]
[366208177,1750121450594,-490.0,0.0001646,2]
[366208178,1750121450603,-490.0,0.0001646,2]
[366208179,1750121450613,-490.0,0.0001646,2]
[366208180,1750121450622,-490.0,0.0001646,2]
[366208181,1750121450632,-151.0,0.0001646,2]
[366208182,1750121450641,-490.0,0.0001646,2]
[366208183,1750121450650,-151.0,0.0001646,2]
[366208184,1750121450659,-151.0,0.0001646,2]
[366208185,1750121450669,-647.72,0.0001646,2]
[366208186,1750121450679,-490.0,0.0001646,2]
[366208187,1750121450688,-407.64,0.0001646,2]
[366208188,1750121450697,-151.0,0.0001646,2]
[366208189,1750121450706,-566.06,0.0001646,2]
[366208190,1750121450716,-490.0,0.0001646,2]
[366208191,1750121450727,-523.0,0.0001646,2]
[366208192,1750121450737,-490.0,0.0001646,2]
[366208193,1750121450747,-157.938586,0.0001646,2]
[366208194,1750121450757,-155.91,0.0001646,2]
[366208195,1750121450767,-490.0,0.0001646,2]
[366208196,1750121450776,-158.5,0.0001646,2]
[366208197,1750121450786,-490.0,0.0001646,2]
[366208198,1750121450795,-490.0,0.0001646,2]
[366208199,1750121450804,-151.0,0.0001646,2]
[366208200,1750121450814,-490.0,0.0001646,2]
[366208201,1750121450823,-151.0,0.0001646,2]
[366208202,1750121450833,-490.0,0.0001646,2]
[366208203,1750121450842,-151.0,0.0001646,2]
[366208204,1750121450851,-490.0,0.0001646,2]
[366208205,1750121450861,-151.0,0.0001646,2]
[366208206,1750121450871,-490.0,0.0001646,2]
[366208207,1750121450881,-490.0,0.0001646,2]
[366208208,1750121450890,-490.0,0.0001646,2]
[366208209,1750121450900,-170.28206002,0.0001646,2]
[366208210,1750121450911,-490.0,0.0001646,2]
[366208211,1750121450920,-611.11,0.0001646,2]
[366208212,1750121450930,-490.0,0.0001646,2]
[366208213,1750121450939,-490.0,0.0001646,2]
[366208214,1750121450949,-151.0,0.0001646,2]
[366208215,1750121450958,-490.0,0.0001646,2]
[366208216,1750121450967,-490.0,0.0001646,2]
[366208217,1750121450975,-151.0,0.0001646,2]
[366208218,1750121450984,-248.03233587,0.0001646,2]
[366208219,1750121450993,-490.0,0.0001646,2]
[366208220,1750121451002,-490.0,0.0001646,2]
[366208221,1750121451011,-490.0,0.0001646,2]
[366208222,1750121451020,-490.0,0.0001646,2]
[366208223,1750121451029,-150.0,0.0001646,2]
[366208224,1750121451039,-490.0,0.0001646,2]
[366208225,1750121451048,-490.0,0.0001646,2]
[366208226,1750121451058,-490.0,0.0001646,2]
[366208227,1750121451067,-151.0,0.0001646,2]
[366208228,1750121451076,-490.0,0.0001646,2]
[366208229,1750121451085,-490.0,0.0001646,2]
[366208230,1750121451094,-490.0,0.0001646,2]
[366208231,1750121451104,-151.0,0.0001646,2]
[366208232,1750121451113,-490.0,0.0001646,2]
[366208233,1750121451122,-225.62,0.0001646,2]
[366208234,1750121451131,-490.0,0.0001646,2]
[366208235,1750121451143,-151.0,0.0001646,2]
[366208236,1750121451151,-151.0,0.0001646,2]
[366208237,1750121451160,-490.0,0.0001646,2]
[366208238,1750121451170,-490.0,0.0001646,2]
[366208239,1750121451179,-490.0,0.0001646,2]
[366208240,1750121451188,-490.0,0.0001646,2]
[366208241,1750121451198,-490.0,0.0001646,2]
[366208242,1750121451207,-151.0,0.0001646,2]
[366208243,1750121451217,-151.0,0.0001646,2]
[366208244,1750121451227,-490.0,0.0001646,2]
[366208245,1750121451236,-151.0,0.0001646,2]
[366208246,1750121451246,-151.0,0.0001646,2]
[366208247,1750121451255,-490.0,0.0001646,2]
[366208248,1750121451264,-490.0,0.0001646,2]
[366208249,1750121451273,-490.0,0.0001646,2]
[366208250,1750121451284,-490.0,0.0001646,2]
[366208251,1750121451293,-503.3,0.0001646,2]
[366208252,1750121451303,-151.0,0.0001646,2]
[366208253,1750121451312,-151.0,0.0001646,2]
[366208254,1750121451321,-490.0,0.0001646,2]
[366208255,1750121451331,-161.465619,0.0001646,2]
[366208256,1750121451341,-151.0,0.0001646,2]
[366208257,1750121451350,-490.0,0.0001646,2]
[366208258,1750121451359,-490.0,0.0001646,2]
[366208259,1750121451369,-490.0,0.0001646,2]
[366208260,1750121451379,-490.0,0.0001646,2]
[366208261,1750121451388,-490.0,0.0001646,2]
[366208262,1750121451398,-490.0,0.0001646,2]
[366208263,1750121451407,-490.0,0.0001646,2]
[366208264,1750121451416,-490.0,0.0001646,2]
[366208265,1750121451425,-1000.0,0.0001646,2]
[366208266,1750121451434,-490.0,0.0001646,2]
[366208267,1750121451444,-490.0,0.0001646,2]
[366208268,1750121451453,-490.0,0.0001646,2]
[366208269,1750121451463,-490.0,0.0001646,2]
[366208270,1750121451473,-566.19,0.0001646,2]
[366208271,1750121451483,-1112.91,0.0001646,2]
[366208272,1750121451492,-490.0,0.0001646,2]
[366208273,1750121451501,-490.0,0.0001646,2]
[366208274,1750121451511,-572.19,0.0001646,2]
[366208275,1750121451521,-3007.57,0.0001646,2]
[366208276,1750121451530,-917.98,0.0001646,2]
[366208277,1750121451539,-490.0,0.0001646,2]
[366208278,1750121451548,-315.61,0.0001646,2]
[366208279,1750121451557,-517.08,0.0001646,2]
[366208280,1750121451567,-490.0,0.0001646,2]
[366208281,1750121451577,-151.0,0.0001646,2]
[366208282,1750121451586,-490.0,0.0001646,2]
[366208283,1750121451595,-490.0,0.0001646,2]
[366208284,1750121451605,-1158.41,0.0001646,2]
[366208285,1750121451614,-490.0,0.0001646,2]
[366208286,1750121451624,-490.0,0.0001646,2]
[366208287,1750121451634,-490.0,0.0001646,2]
[366208288,1750121451643,-661.22,0.0001646,2]
[366208289,1750121451653,-490.0,0.0001646,2]
[366208290,1750121451663,-151.0,0.0001646,2]
[366208291,1750121451672,-525.98,0.0001646,2]
[366208292,1750121451683,-151.0,0.0001646,2]
[366208293,1750121451692,-151.0,0.0001646,2]
[366208294,1750121451701,-180.45839,0.0001646,2]
[366208295,1750121451712,-180.45839,0.0001646,2]
[366208296,1750121451722,-1083.12,0.0001646,2]
[366208297,1750121451731,-151.0,0.0001646,2]
[366208298,1750121451741,-502.352401,0.0001646,2]
[366208299,1750121451749,-180.45839,0.0001646,2]
[366208300,1750121451759,-180.45839,0.0001646,2]
[366208301,1750121451769,-502.352401,0.0001646,2]
[366208302,1750121451779,-490.0,0.0001646,2]
[366208303,1750121451788,-502.352401,0.0001646,2]
[366208304,1750121451798,-502.352401,0.0001646,2]
[366208305,1750121451807,-490.0,0.0001646,2]
[366208306,1750121451817,-490.0,0.0001646,2]
[366208307,1750121451827,-490.0,0.0001646,2]
[366208308,1750121451836,-411.87624579,0.0001646,2]
[366208309,1750121451846,-527.97,0.0001646,2]
[366208310,1750121451855,-261.27,0.0001646,2]
[366208311,1750121451864,-490.0,0.0001646,2]
[366208312,1750121451875,-3258.49,0.0001646,2]
[366208313,1750121451885,-1612.7,0.0001646,2]
[366208314,1750121451894,-490.0,0.0001646,2]
[366208315,1750121451903,-490.0,0.0001646,2]
[366208316,1750121451914,-490.0,0.0001646,2]
[366208317,1750121451923,-1562.33,0.0001646,2]
[366208318,1750121451933,-151.0,0.0001646,2]
[366208319,1750121451942,-151.0,0.0001646,2]
[366208320,1750121451952,-490.0,0.0001646,2]
[366208321,1750121451962,-937.38,0.0001646,2]
[366208322,1750121451971,-256.495271,0.0001646,2]
[366208323,1750121451981,-1078.96,0.0001646,2]
[366208324,1750121451990,-256.495271,0.0001646,2]
[366208325,1750121452000,-490.0,0.0001646,2]
[366208326,1750121452009,-490.0,0.0001646,2]
[366208327,1750121452018,-2272.9,0.0001646,2]
[366208328,1750121452027,-490.0,0.0001646,2]
[366208329,1750121452036,-490.0,0.0001646,2]
[366208330,1750121452046,-585.94,0.0001646,2]
[366208331,1750121452055,-490.0,0.0001646,2]
[366208332,1750121452064,-2682.34,0.0001646,2]
[366208333,1750121452074,-597.61,0.0001646,2]
[366208334,1750121452083,-490.0,0.0001646,2]
[366208335,1750121452092,-490.0,0.0001646,2]
[366208336,1750121452101,-490.0,0.0001646,2]
[366208337,1750121452111,-490.0,0.0001646,2]
[366208338,1750121452120,-490.0,0.0001646,2]
[366208339,1750121452130,-490.0,0.0001646,2]
[366208340,1750121452142,-495.41,0.0001646,2]
[366208341,1750121452151,-490.0,0.0001646,2]
[366208342,1750121452161,-490.0,0.0001646,2]
[366208343,1750121452170,-232.619101,0.0001646,2]
[366208344,1750121452179,-490.0,0.0001646,2]
[366208345,1750121452189,-151.0,0.0001646,2]
[366208346,1750121452198,-151.0,0.0001646,2]
[366208347,1750121452207,-151.0,0.0001646,2]
[366208348,1750121452219,-151.0,0.0001646,2]
[366208349,1750121452231,-490.0,0.0001646,2]
[366208350,1750121452241,-151.0,0.0001646,2]
[366208351,1750121452251,-1350.07,0.0001646,2]
[366208352,1750121452262,-490.0,0.0001646,2]
[366208353,1750121452271,-490.0,0.0001646,2]
[366208354,1750121452281,-490.0,0.0001646,2]
[366208355,1750121452290,-490.0,0.0001646,2]
[366208356,1750121452299,-151.0,0.0001646,2]
[366208357,1750121452309,-490.0,0.0001646,2]
[366208358,1750121452318,-490.0,0.0001646,2]
[366208359,1750121452327,-490.0,0.0001646,2]
[366208360,1750121452337,-490.0,0.0001646,2]
[366208361,1750121452346,-490.0,0.0001646,2]
[366208362,1750121452355,-151.0,0.0001646,2]
[366208363,1750121452365,-3516.93,0.0001646,2]
[366208364,1750121452375,-151.0,0.0001646,2]
[366208365,1750121452385,-490.0,0.0001646,2]
[366208366,1750121452402,-649.52,0.0001646,2]
[366208367,1750121452412,-151.0,0.0001646,2]
[366208368,1750121452422,-151.0,0.0001646,2]
[366208369,1750121452431,-490.0,0.0001646,2]
[366208370,1750121452441,-490.0,0.0001646,2]
[366208371,1750121452450,-151.0,0.0001646,2]
[366208372,1750121452460,-490.0,0.0001646,2]
[366208373,1750121452470,-490.0,0.0001646,2]
[366208374,1750121452479,-490.0,0.0001646,2]
[366208375,1750121452489,-213.75914071,0.0001646,2]
[366208376,1750121452499,-213.75914071,0.00016461,2]
[366208377,1750121452508,-490.0,0.00016461,2]
[366208378,1750121452519,-151.0,0.00016461,2]
[366208379,1750121452528,-151.0,0.00016461,2]
[366208380,1750121452538,-151.0,0.00016461,2]
[366208381,1750121452547,-151.0,0.00016461,2]
[366208382,1750121452557,-151.0,0.00016461,2]
[366208383,1750121452567,-151.0,0.00016461,2]
[366208384,1750121452576,-151.0,0.00016461,2]
[366208385,1750121452587,-151.0,0.00016461,2]
[366208386,1750121452596,-151.0,0.00016461,2]
[366208387,1750121452606,-151.0,0.00016461,2]
[366208388,1750121452615,-151.0,0.00016462,2]
[366208389,1750121452626,-10906.70312209,0.00016462,2]
[366208390,1750121452637,-18182.11142337,0.00016463,2]
[366208391,1750121452647,-675.03528596,0.00016463,2]
[366208392,1750121452656,-675.03528596,0.00016464,2]
[366208393,1750121452667,-675.03528596,0.00016466,2]
[366208394,1750121452678,-467.48444349,0.00016467,2]
[366208395,1750121452688,-10906.70312209,0.00016467,2]
[366208396,1750121452698,-150.0,0.00016468,2]
[366208397,1750121452708,-213.75914071,0.00016468,2]
[366208398,1750121452718,-10906.70312209,0.0001647,2]
[366208399,1750121452728,-10906.70312209,0.0001647,2]
[366208400,1750121452739,-10906.70312209,0.00016475,2]
[366208401,1750121452750,-10906.70312209,0.00016476,2]
[366208402,1750121452760,-150.0,0.00016478,2]
[366208403,1750121452770,-150.0,0.00016479,2]
[366208404,1750121452780,-675.03528596,0.00016483,2]
[366208405,1750121452790,-500.0,0.00016483,2]
[366208406,1750121452800,-217.899992,0.00016484,2]
[366208407,1750121452810,-151.0,0.00016484,2]
[366208408,1750121452820,-151.0,0.00016484,2]
[366208409,1750121452830,-150.0,0.00016485,2]
[366208410,1750121452840,-644.27033933,0.00016486,2]
[366208411,1750121452852,-1103.68018364,0.00016487,2]
[366208412,1750121452863,-324.0,0.00016488,4]
[366208413,1750121452875,-150.0,0.0001649,2]
[366208414,1750121452887,-151.0,0.00016492,2]
[366208415,1750121452897,-151.0,0.00016492,2]
[366208416,1750121452909,-151.0,0.00016492,2]
[366208417,1750121452920,-151.0,0.00016492,2]
[366208418,1750121452930,-214.113532,0.00016492,2]
[366208419,1750121452940,-18182.11142337,0.00016493,2]
[366208420,1750121452950,-150.0,0.00016493,2]
[366208421,1750121452960,-150.0,0.00016495,2]
[366208422,1750121452970,-18182.11142337,0.00016497,2]
[366208423,1750121452981,-164.46263279,0.00016497,2]
[366208424,1750121452991,-150.0,0.00016498,2]
[366208425,1750121453001,-151.0,0.000165,2]
[366208426,1750121453011,-151.0,0.000165,2]
[366208427,1750121453022,-151.0,0.000165,2]
[366208428,1750121453031,-151.0,0.000165,2]
[366208429,1750121453042,-231.40501,0.000165,2]
[366208430,1750121453052,-151.0,0.000165,2]
[366208431,1750121453062,-151.0,0.000165,2]
[366208432,1750121453072,-1500.0,0.000165,6]
[366208433,1750121453082,-155.17381336,0.00016502,2]
[366208434,1750121453092,-150.0,0.00016504,2]
[366208435,1750121453102,-150.0,0.00016505,2]
[366208436,1750121453112,-150.0,0.00016506,2]
[366208437,1750121453122,-151.0,0.00016508,2]
[366208438,1750121453137,-151.0,0.00016508,2]
[366208439,1750121453149,-151.0,0.00016508,2]
[366208440,1750121453159,-12994.34815863,0.00016508,2]
[366208441,1750121453169,-7033.04817479,0.00016508,2]
[366208442,1750121453180,-150.0,0.00016513,2]
[366208443,1750121453189,-150.0,0.00016514,2]
[366208444,1750121453199,-150.0,0.00016516,2]
[366208445,1750121453210,-150.0,0.00016516,2]
[366208446,1750121453221,-150.0,0.00016518,2]
[366208447,1750121453232,-150.0,0.00016518,2]
[366208448,1750121453242,-150.0,0.00016518,2]
[366208449,1750121453251,-150.0,0.00016518,2]
[366208450,1750121453261,-150.0,0.00016518,2]
[366208451,1750121453271,-150.0,0.00016518,2]
[366208452,1750121453280,-150.0,0.00016518,2]
[366208453,1750121453290,-150.0,0.00016518,2]
[366208454,1750121453300,-200.0,0.00016518,2]
[366208455,1750121453309,-150.0,0.00016518,2]
[366208456,1750121453319,-150.0,0.00016518,2]
[366208457,1750121453328,-150.0,0.00016518,2]
[366208458,1750121453338,-150.0,0.00016518,2]
[366208459,1750121453347,-150.0,0.00016518,2]
[366208460,1750121453357,-150.0,0.00016518,2]
[366208461,1750121453366,-150.0,0.00016518,2]
[366208462,1750121453378,-417.0,0.00016518,3]
[366208463,1750121453387,-150.0,0.00016518,2]
[366208464,1750121453397,-150.0,0.00016518,2]
[366208465,1750121453407,-500.0,0.00016518,2]
[366208466,1750121453418,-150.0,0.00016518,2]
[366208467,1750121453427,-150.0,0.00016518,2]
[366208468,1750121453437,-500.0,0.00016518,2]
[366208469,1750121453447,-150.0,0.00016518,2]
[366208470,1750121453457,-644.27033933,0.00016521,2]
[366208471,1750121453468,-150.0,0.00016521,2]
[366208472,1750121453478,-150.0,0.00016521,2]
[366208473,1750121453488,-150.0,0.00016531,2]
[366208474,1750121453498,-150.0,0.00016532,2]
[366208475,1750121453508,-150.0,0.00016535,2]
[366208476,1750121453518,-150.0,0.00016536,2]
[366208477,1750121453528,-150.0,0.00016537,2]
[366208478,1750121453537,-150.0,0.00016537,2]
[366208479,1750121453548,-150.0,0.00016539,2]
[366208480,1750121453559,-150.0,0.00016543,2]
[366208481,1750121453569,-1000.0,0.00016545,2]
[366208482,1750121453580,-150.0,0.00016545,2]
[366208483,1750121453590,-150.0,0.00016545,2]
[366208484,1750121453600,-150.0,0.00016545,2]
[366208485,1750121453610,-150.0,0.00016545,2]
[366208486,1750121453619,-250.0,0.00016545,2]
[366208487,1750121453631,-150.0,0.00016545,2]
[366208488,1750121453641,-150.0,0.00016545,2]
[366208489,1750121453652,-150.0,0.00016545,2]
[366208490,1750121453662,-150.0,0.00016545,2]
[366208491,1750121453672,-417.0,0.00016545,3]
[366208492,1750121453681,-150.0,0.00016545,2]
[366208493,1750121453691,-150.0,0.00016545,2]
[366208494,1750121453701,-500.0,0.00016545,2]
[366208495,1750121453711,-165.83626927,0.00016545,2]
[366208496,1750121453722,-150.0,0.00016545,2]
[366208497,1750121453732,-500.0,0.00016545,2]
[366208498,1750121453742,-166.38694766,0.00016548,2]
[366208499,1750121453752,-150.0,0.00016551,2]
[366208500,1750121453762,-150.0,0.00016551,2]
[366208501,1750121453772,-150.0,0.00016553,2]
[366208502,1750121453783,-150.0,0.00016554,2]
[366208503,1750121453793,-644.27033933,0.00016555,2]
[366208504,1750121453803,-150.0,0.00016558,2]
[366208505,1750121453813,-150.0,0.00016559,2]
[366208506,1750121453824,-150.0,0.00016563,2]
[366208507,1750121453835,-228.3,0.00016564,2]
[366208508,1750121453846,-150.0,0.00016565,2]
[366208509,1750121453856,-500.0,0.00016565,2]
[366208510,1750121453867,-490.0,0.00016566,2]
[366208511,1750121453881,-571.73,0.00016566,2]
[366208512,1750121453892,-490.0,0.00016566,2]
[366208513,1750121453903,-490.0,0.00016566,2]
[366208514,1750121453913,-490.0,0.00016566,2]
[366208515,1750121453923,-622.62,0.00016566,2]
[366208516,1750121453934,-150.0,0.00016568,2]
[366208517,1750121453945,-150.0,0.00016571,2]
[366208518,1750121453955,-150.0,0.00016572,2]
[366208519,1750121453965,-150.0,0.00016573,2]
[366208520,1750121453975,-207.58129561,0.00016573,2]
[366208521,1750121453985,-150.0,0.00016573,2]
[366208522,1750121453996,-200.0,0.00016573,2]
[366208523,1750121454006,-266.81966861,0.00016573,2]
[366208524,1750121454016,-417.0,0.00016573,3]
[366208525,1750121454027,-200.0,0.00016573,2]
[366208526,1750121454037,-150.0,0.00016573,2]
[366208527,1750121454047,-500.0,0.00016573,2]
[366208528,1750121454057,-150.0,0.00016573,2]
[366208529,1750121454069,-500.0,0.00016573,2]
[366208530,1750121454081,-150.0,0.00016573,2]
[366208531,1750121454092,-150.0,0.00016574,2]
[366208532,1750121454102,-467.48444349,0.00016575,2]
[366208533,1750121454112,-150.0,0.00016579,2]
[366208534,1750121454123,-150.0,0.00016579,2]
[366208535,1750121454135,-335.0,0.0001658,2]
[366208536,1750121454147,-150.0,0.00016581,2]
[366208537,1750121454157,-527.05301072,0.00016583,2]
[366208538,1750121454167,-151.0,0.00016584,2]
[366208539,1750121454179,-151.0,0.00016584,2]
[366208540,1750121454189,-151.0,0.00016584,2]
[366208541,1750121454199,-161.124481,0.00016584,2]
[366208542,1750121454209,-154.369671,0.00016584,2]
[366208543,1750121454221,-151.0,0.00016584,2]
[366208544,1750121454231,-151.0,0.00016584,2]
[366208545,1750121454241,-151.0,0.00016584,2]
[366208546,1750121454252,-151.0,0.00016584,2]
[366208547,1750121454262,-151.0,0.00016584,2]
[366208548,1750121454272,-151.0,0.00016584,2]
[366208549,1750121454282,-151.0,0.00016584,2]
[366208550,1750121454292,-207.29019,0.00016584,2]
[366208551,1750121454303,-207.29019,0.00016584,2]
[366208552,1750121454313,-151.0,0.00016584,2]
[366208553,1750121454323,-151.0,0.00016584,2]
[366208554,1750121454333,-151.0,0.00016584,2]
[366208555,1750121454343,-151.0,0.00016584,2]
[366208556,1750121454353,-151.0,0.00016584,2]
[366208557,1750121454363,-151.0,0.00016584,2]
[366208558,1750121454372,-151.0,0.00016584,2]
[366208559,1750121454385,-151.0,0.00016584,2]
[366208560,1750121454395,-151.0,0.00016584,2]
[366208561,1750121454405,-151.0,0.00016584,2]
[366208562,1750121454415,-173.712388,0.00016584,2]
[366208563,1750121454425,-151.0,0.00016584,2]
[366208564,1750121454435,-151.0,0.00016584,2]
[366208565,1750121454445,-151.0,0.00016584,2]
[366208566,1750121454455,-151.0,0.00016584,2]
[366208567,1750121454464,-151.0,0.00016584,2]
[366208568,1750121454474,-151.0,0.00016584,2]
[366208569,1750121454484,-151.0,0.00016584,2]
[366208570,1750121454494,-151.0,0.00016584,2]
[366208571,1750121454504,-79015.5315153,0.00016584,2]
[366208572,1750121454514,-151.0,0.00016584,2]
[366208573,1750121454524,-9159.1360441,0.00016584,2]
[366208574,1750121454535,-52588.1086175,0.00016584,2]
[366208575,1750121454546,-151.0,0.00016584,2]
[366208576,1750121454555,-180.45839,0.00016584,2]
[366208577,1750121454565,-151.0,0.00016584,2]
[366208578,1750121454575,-180.45839,0.00016584,2]
[366208579,1750121454584,-502.352401,0.00016584,2]
[366208580,1750121454594,-502.352401,0.00016584,2]
[366208581,1750121454604,-151.0,0.00016584,2]
[366208582,1750121454614,-256.495271,0.00016584,2]
[366208583,1750121454625,-2887.0933243,0.00016584,2]
[366208584,1750121454635,-256.495271,0.00016584,2]
[366208585,1750121454645,-151.0,0.00016584,2]
[366208586,1750121454655,-151.0,0.00016584,2]
[366208587,1750121454665,-151.0,0.00016584,2]
[366208588,1750121454676,-151.0,0.00016584,2]
[366208589,1750121454686,-151.0,0.00016584,2]
[366208590,1750121454695,-151.0,0.00016584,2]
[366208591,1750121454705,-150.0,0.00016585,2]
[366208592,1750121454715,-12994.34815863,0.00016587,2]
[366208593,1750121454727,-7033.04817479,0.00016587,2]
[366208594,1750121454736,-1000.0,0.00016588,2]
[366208595,1750121454746,-1000.0,0.00016588,2]
[366208596,1750121454757,-1000.0,0.00016588,2]
[366208597,1750121454767,-1000.0,0.00016588,2]
[366208598,1750121454778,-1000.0,0.00016588,2]
[366208599,1750121454788,-1000.0,0.00016588,2]
[366208600,1750121454798,-1000.0,0.00016588,2]
[366208601,1750121454809,-1000.0,0.00016588,2]
[366208602,1750121454820,-1000.0,0.00016588,2]
[366208603,1750121455121,-1000.0,0.00016588,2]
[366208604,1750121455138,-1000.0,0.00016588,2]
[366208605,1750121455150,-1000.0,0.00016588,2]
[366208606,1750121455160,-1000.0,0.00016588,2]
[366208607,1750121455170,-533.79645947,0.00016588,2]
[366208608,1750121455181,-151.0,0.00016588,2]
[366208609,1750121455192,-644.27033933,0.0001659,2]
[366208610,1750121455202,-4127.52,0.00016595,2]
[366208611,1750121455211,-164.46263279,0.00016598,2]
[366208612,1750121455222,-500.0,0.00016599,2]
[366208613,1750121455232,-349.87,0.000166,2]
[366208614,1750121455241,-376.0,0.000166,2]
[366208615,1750121455251,-769.0,0.000166,2]
[366208616,1750121455260,-1500.0,0.000166,6]
[366208617,1750121455270,-237.0,0.000166,2]
[366208618,1750121455280,-417.0,0.000166,3]
[366208619,1750121455290,-200.0,0.000166,2]
[366208620,1750121455300,-500.0,0.000166,2]
[366208621,1750121455309,-150.0,0.000166,2]
[366208622,1750121455319,-150.0,0.000166,2]
[366208623,1750121455328,-151.0,0.00016603,2]
[366208624,1750121455338,-490.0,0.00016622,2]
[366208625,1750121455348,-490.0,0.00016622,2]
[366208626,1750121455358,-490.0,0.00016622,2]
[366208627,1750121455368,-490.0,0.00016622,2]
[366208628,1750121455380,-490.0,0.00016622,2]
[366208629,1750121455391,-490.0,0.00016623,2]
[366208630,1750121455403,-490.0,0.00016623,2]
[366208631,1750121455413,-490.0,0.00016623,2]
[366208632,1750121455423,-490.0,0.00016623,2]
[366208633,1750121455432,-629.63,0.00016623,2]
[366208634,1750121455442,-490.0,0.00016623,2]
[366208635,1750121455452,-860.84,0.00016623,2]
[366208636,1750121455463,-644.22,0.00016623,2]
[366208637,1750121455473,-827.18,0.00016623,2]
[366208638,1750121455482,-564.53,0.00016623,2]
[366208639,1750121455492,-490.0,0.00016623,2]
[366208640,1750121455502,-500.0,0.00016623,2]
[366208641,1750121455512,-591.69,0.00016623,2]
[366208642,1750121455521,-490.0,0.00016623,2]
[366208643,1750121455530,-1205.99,0.00016623,2]
[366208644,1750121455540,-490.0,0.00016623,2]
[366208645,1750121455550,-490.0,0.00016623,2]
[366208646,1750121455559,-490.0,0.00016623,2]
[366208647,1750121455569,-618.58,0.00016623,2]
[366208648,1750121455579,-490.0,0.00016623,2]
[366208649,1750121455588,-490.0,0.00016623,2]
[366208650,1750121455598,-490.0,0.00016623,2]
[366208651,1750121455607,-490.0,0.00016623,2]
[366208652,1750121455617,-490.0,0.00016623,2]
[366208653,1750121455628,-490.0,0.00016623,2]
[366208654,1750121455638,-879.86,0.00016623,2]
[366208655,1750121455649,-490.0,0.00016623,2]
[366208656,1750121455659,-1444.93,0.00016623,2]
[366208657,1750121455674,-401.36,0.00016623,2]
[366208658,1750121455684,-733.14,0.00016623,2]
[366208659,1750121455694,-490.0,0.00016623,2]
[366208660,1750121455705,-613.33,0.00016623,2]
[366208661,1750121455714,-887.26,0.00016623,2]
[366208662,1750121455724,-654.63,0.00016623,2]
[366208663,1750121455734,-316.68,0.00016623,2]
[366208664,1750121455744,-610.87,0.00016623,2]